{"text_format":"1","workbook":"xlsx","n_sheets":5,"sheets":["Emploi check list","Identification","Potentiel","Actions non réalisées","Actions partiellement réalisées"],"not_rendered":{"charts":1,"images":2,"macros":0,"external_links":0,"defined_names":9,"comments":0,"pivot_tables":0},"unopened":[],"bounds":{"document_bytes":16777216,"sheet_cells":100000,"rows_first":2000,"rows_last":500,"rows_between":2000,"halvings":0,"cell_chars":16384,"cell_head_chars":4096},"cells_cut":0,"cells_raw":0,"read":"whole","date_system":"1900"}

{"sheet":"Emploi check list","index":0,"n_rows":33,"n_cols":2,"rows_kept":33,"cut":false,"hidden":false,"merged":[[32,0,32,10],[13,1,13,10],[5,1,5,10],[6,1,6,10],[7,1,7,10],[8,1,8,10],[9,1,9,10],[10,1,10,10]]}
[]
["Auto-diagnostic énergétique - SIG éco21"]
[]
["Mode d'emploi de l'auto-diagnostic"]
[]
[1,"Faire la visite de vos installations techniques (si possible avec votre prestataire de maintenance) avec le questionnaire de l'onglet \"Identification\" en appliquant la méthodologie suivante :"]
[null,"- Utiliser la case \"Non applicable\" en face de chaque proposition d'amélioration énergétique qui ne peut être mise en œuvre sur votre site (impossibilité technique, impossibilité organisationnelle)."]
[null,"- Utiliser la case \"Non réalisée\" en face de chaque proposition d'amélioration énergétique qui est réalisable sur votre site."]
[null,"- Utiliser la case \"Partiellement réalisée\" en face de chaque proposition d'amélioration énergétique qui est en cours de mise en place sur votre site et/ou qui a été seulement appliquée à une partie seulement de votre site."]
[null,"- Utiliser la case \"Totalement réalisée\" en face de chaque proposition d'amélioration énergétique qui est effective sur votre site."]
[2,"Afin d'avoir une vision précise de vos potentiels, n'hésitez pas à compléter la colonne \"Commentaires\", notamment selon les retours de votre prestataire de maintenance et/ou de vos équipes techniques internes."]
[3,"Déterminer les actions prioritaires en appliquant le critère d'évaluation défini au statut \"Non Réalisé\" ou \"Partiellement réalisé\""]
[3,"Si nécessaire: Sélectionner les 3-4 actions les plus intéressantes pour chaque statut \"Non Réalisé\" ou \"Partiellement réalisé\"."]
[4,"Pour les deux onglets (\"Actions non réalisées\" et \"Actions partiellemment réalisées\" : Complétez les colonnes  \"E \"(Décision) et \"F\" (Date proposée)."]
[5,"Planifiez vos actions et si vous êtes suivi par éco21, renseignez l'outil de suivi."]
[]
[]
[]
[]
[]
[]
[]
[]
[]
[]
[]
[]
[]
[]
[]
[]
[]
["© SIG 2022"]

{"sheet":"Identification","index":1,"n_rows":77,"n_cols":7,"rows_kept":77,"cut":false,"hidden":false,"merged":[[76,0,76,6],[67,1,68,1],[67,2,67,5],[67,6,68,6],[67,0,68,0],[19,0,20,0],[31,0,32,0],[44,0,45,0],[56,0,57,0],[56,1,57,1],[56,6,57,6],[44,2,44,5],[56,2,56,5],[19,6,20,6],[19,1,20,1],[31,1,32,1],[31,6,32,6],[44,1,45,1],[44,6,45,6],[31,2,31,5],[19,2,19,5]]}
[]
[]
[]
[]
[]
[]
[]
[]
["Date de l'auto-diagnostic"]
[]
[]
["Nom de l'entreprise"]
["Nom de l'auteur de l'auto-diagnostic"]
["Adresse du site"]
[]
[]
[]
[]
[]
["Proposition d'amélioration énergétique","Rentabilité","Evaluation \nEntrer le chiffre 1 dans la case qui convient",null,null,null,"Précisions"]
[null,null,"Non applicable","Non réalisé","Partiellement réalisé","Totalement réalisé"]
["CHAUFFAGE"]
["Mettre en place d'une programmation horaire pour effectuer une réduction de chauffage pendant les périodes où le bâtiment est innocupé (nuit, week-end).\nFiche : 9975-ECH-BO-Baisse-température-hors-heures","+ + + +"]
["Adapter les horaires de la régulation de chauffage aux horaires d'occupation réels du bâtiment.\nFiche: 9975-ECH-BO-Baisse-température-hors-heures","+ + + +"]
["Demander au prestataire de maintenance  de vérifier les paramètres de la chaudière (courbes de chauffe) et corriger les réglages si nécessaire.\nFiche : 9982-ECH-BO-Courbe de chauffe","+ + + +"]
["Si la chaudière est \"à condensation\", demander au prestataire de maintenance de  diminuer la température de retour (modification de la consigne de départ & débit)","+ + + +"]
["Isoler les conduites de chauffage dans les locaux non chauffés et réduire les vitesses de circulation de l'eau de chauffage.\nFiche : 9974-ECH-BO-Pompe de circulation","+ + + +"]
["Vérifier les réglage des vannes thermostatiques ou des thermostats mureaux.\nFiche : 9979-ECH-BO- Vannes réseaux\nFiche : 9980-ECH-BO- Vannes thermostatiques","+ + + +"]
["Nb de thèmes marqués \"non concerné\"",null,{"$f":"SUM(C23:C28)","v":0}]
["Score final (Somme des points)",null,{"$f":"SUM(D23:D28)+SUM(E23:E28)*2+SUM(F23:F28)*3","v":0},null,null,{"$f":"1-C30/(3*(6-C29))","v":1}]
[]
["Proposition d'amélioration énergétique","Rentabilité","Evaluation \nEntrer le chiffre 1 dans la case qui convient",null,null,null,"Précisions"]
[null,null,"Non applicable","Non réalisé","Partiellement réalisé","Totalement réalisé"]
["VENTILATION ET CLIMATISATION"]
["Mettre en place une programmation horaire pour effectuer une réduction du débit de ventilation pendant les périodes où le bâtiment est innocupé.\nFiche: 9987-ECH-BO-Fonctionnement ventilations","+ + + +"]
["Demander au prestataire de maintenance d'adapter les débits d'air entrant dans le bâtiment (air neuf) aux débits d'air recommandés selon les normes en vigueur.\nFiche: 9988-ECH-BO-Débit d'air","+ + + +"]
["Pendant la période hivernale, demander au prestataire de maintenance de favoriser le roulement du ventilateur (ou arrêter la pulsion d'air) en dehors des heures d'occupation du bâtiment.\nFiche : 9990-ECH-BO-Récupération chaleur","+ + + +"]
["Limiter l'extraction de l'air du bâtiment pendant les périodes où le bâtiment est innocupé (nuit, week-end, etc.).","+ + + +"]
["Demander au prestataire de maintenance de modifier les points de consigne de la ventilation (jour/nuit & week-end) ainsi que les conditions de confort selon les périodes (été/hiver)","+ + + +"]
["Si la climatisation des locaux est couplée à la ventilation, demander au prestataire de couper l’humidification lorsque la température extérieure dépasse 8°C.","+ + + +"]
["Demander au prestataire de maintenance de vérifier la régulation du chauffage et de refroidissement (consignes, périodes de fonctionnement,etc.) afin d'éviter le fonctionnement simultané des deux équipements dans une même pièce.","+ + + +"]
["Nb de thèmes marqués \"non concerné\"",null,{"$f":"SUM(C35:C41)","v":0}]
["Score final (Somme des points)",null,{"$f":"SUM(D35:D41)+SUM(E35:E41)*2+SUM(F35:F41)*3","v":0},null,null,{"$f":"1-C43/(3*(7-C42))","v":1}]
[]
["Proposition d'amélioration énergétique","Rentabilité","Evaluation \nEntrer le chiffre 1 dans la case qui convient",null,null,null,"Précisions"]
[null,null,"Non applicable","Non réalisé","Partiellement réalisé","Totalement réalisé"]
["EAU CHAUDE SANITAIRE "]
["Si le bâtiment est de grande surface, installer une production décentralisée d'eau chaude et couper la boucle de circulation.","+ + +"]
["Isoler les parois du ballon d'eau chaude sanitaire (au moins 10 cm pour respecter les mesures anti-légionelles).","+ + +"]
["Équiper les robinets des lavabos et des douches d'une temporisation (par exemple : boutons-poussoirs).\nFiche: 9973-ECH-BO-Réduire-débit-d’eau","+ + +"]
["Installer des réducteurs de débit sur la robinetterie d'eau chaude (réducteur de pression aux robinets lave-main, pomme de douche à faible débit).","+ + +"]
["Paramétrer le chauffage électrique du ballon la nuit.","+ + +"]
["Sensibiliser les occupants à limiter leur utilisation d'eau chaude et à utiliser plutôt l'eau froide que l'eau chaude.","+ +"]
["Nb de thèmes marqués \"non concerné\"",null,{"$f":"SUM(C48:C53)","v":0}]
["Score final (Somme des points)",null,{"$f":"SUM(D48:D53)+SUM(E48:E53)*2+SUM(F48:F53)*3","v":0},null,null,{"$f":"1-C55/(3*(6-C54))","v":1}]
[]
["Proposition d'amélioration énergétique","Rentabilité","Evaluation \nEntrer le chiffre 1 dans la case qui convient",null,null,null,"Précisions"]
[null,null,"Non applicable","Non réalisé","Partiellement réalisé","Totalement réalisé"]
["ÉCLAIRAGE"]
["Remplacer les tubes fluorescents par des tubes LED.\nFiche : 9965-ECH-BO-Remplacement-éclairage","+ + +"]
["Remplacer les lampes à incandescence ou halogènes par des lampes LED.\nFiche : 9965-ECH-BO-Remplacement-éclairage","+ + +"]
["Gérer le fonctionnement l'éclairage extérieur suivant les besoins réels (programmation horaire, cellules photoélectriques, détecteurs de présence ou en synchronisme avec l'éclairage public).\nFiche : 9967-ECH-BO-Reglage détecteurs","+ + +"]
["Installer des minuteries dans les locaux occupés de façon intermittente (sanitaires, couloirs, parking, etc.)\nFiche : 9967-ECH-BO-Reglage détecteurs","+ + +"]
["Adapter l’intensité de l’éclairage aux besoins réels (salles de réunion, cafétéria, etc.).\nFiche : 9966-ECH-BO-Adapter l’intensité de l'éclairage","+ + +"]
["Nb de thèmes marqués \"non concerné\"",null,{"$f":"SUM(C60:C64)","v":0}]
["Score final (Somme des points)",null,{"$f":"SUM(D60:D64)+SUM(E60:E64)*2+SUM(F60:F64)*3","v":0},null,null,{"$f":"1-C66/(3*(5-C65))","v":1}]
[]
["Proposition d'amélioration énergétique","Rentabilité","Evaluation \nEntrer le chiffre 1 dans la case qui convient",null,null,null,"Précisions"]
[null,null,"Non applicable","Non réalisé","Partiellement réalisé","Totalement réalisé"]
["BUREAUTIQUE"]
["Éteindre les ordinateurs la nuit.","+ + + +"]
["Configurer les ordinateurs en mode veille s'ils le permettent.","+ + + +"]
["Réduire le nombre d'imprimantes en les concentrant (par zone, par étage, etc. plutôt que par bureau)","+ + +"]
["Nb de thèmes marqués \"non concerné\"",null,{"$f":"SUM(C71:C73)","v":0}]
["Score final (Somme des points)",null,{"$f":"SUM(D71:D73)+SUM(E71:E73)*2+SUM(F71:F73)*3","v":0},null,null,{"$f":"1-C75/(3*(3-C74))","v":1}]
[]
["© SIG 2022"]

{"sheet":"Potentiel","index":2,"n_rows":25,"n_cols":7,"rows_kept":25,"cut":false,"hidden":false,"merged":[[24,0,24,9],[5,2,5,3],[6,2,6,3]]}
[]
[]
[]
[]
[]
[null,"Entreprise :",{"$f":"IF(Identification!B12=\"\",\"\",Identification!B12)","v":""},null,null,"Date :",{"$f":"IF(Identification!B9,Identification!B9,\"\")","v":""}]
[null,"Réalisé par :",{"$f":"IF(Identification!B13=\"\",\"\",+Identification!B13)","v":""}]
[]
[]
[]
[]
[]
[null,null,"Potentiel de réalisation"]
[null,{"$f":"+Identification!A22","v":"CHAUFFAGE"},{"$f":"Identification!F30","v":1}]
[null,{"$f":"+Identification!A34","v":"VENTILATION ET CLIMATISATION"},{"$f":"Identification!F43","v":1}]
[null,{"$f":"+Identification!A47","v":"EAU CHAUDE SANITAIRE "},{"$f":"Identification!F55","v":1}]
[null,{"$f":"+Identification!A59","v":"ÉCLAIRAGE"},{"$f":"Identification!F66","v":1}]
[null,{"$f":"+Identification!A70","v":"BUREAUTIQUE"},{"$f":"Identification!F75","v":1}]
[]
[]
[]
[]
[]
[]
["© SIG 2022"]

{"sheet":"Actions non réalisées","index":3,"n_rows":38,"n_cols":6,"rows_kept":38,"cut":false,"hidden":false,"merged":[[37,0,37,6]]}
[]
[]
[null,{"$f":"IF(Identification!B12=\"\",\"\",Identification!B12)","v":""},{"$f":"IF(Identification!B9=\"\",\"\",Identification!B9)","v":""}]
[]
[null,"Projets non réalisés","Rentabilité","Commentaire","Décision","Date proposée"]
[null,{"$f":"Identification!A22","v":"CHAUFFAGE"}]
[null,{"$f":"IF(Identification!$D23,Identification!A23,\"\")","v":""},{"$f":"IF(Identification!$D23,Identification!B23,\"\")","v":""},{"$f":"IF(Identification!$D23,Identification!G23,\"\")","v":""}]
[null,{"$f":"IF(Identification!$D24,Identification!A24,\"\")","v":""},{"$f":"IF(Identification!$D24,Identification!B24,\"\")","v":""},{"$f":"IF(Identification!$D24,Identification!G24,\"\")","v":""}]
[null,{"$f":"IF(Identification!$D25,Identification!A25,\"\")","v":""},{"$f":"IF(Identification!$D25,Identification!B25,\"\")","v":""},{"$f":"IF(Identification!$D25,Identification!G25,\"\")","v":""}]
[null,{"$f":"IF(Identification!$D26,Identification!A26,\"\")","v":""},{"$f":"IF(Identification!$D26,Identification!B26,\"\")","v":""},{"$f":"IF(Identification!$D26,Identification!G26,\"\")","v":""}]
[null,{"$f":"IF(Identification!$D27,Identification!A27,\"\")","v":""},{"$f":"IF(Identification!$D27,Identification!B27,\"\")","v":""},{"$f":"IF(Identification!$D27,Identification!G27,\"\")","v":""}]
[null,{"$f":"IF(Identification!$D28,Identification!A28,\"\")","v":""},{"$f":"IF(Identification!$D28,Identification!B28,\"\")","v":""},{"$f":"IF(Identification!$D28,Identification!G28,\"\")","v":""}]
[null,{"$f":"Identification!A34","v":"VENTILATION ET CLIMATISATION"}]
[null,{"$f":"IF(Identification!$D36,Identification!A36,\"\")","v":""},{"$f":"IF(Identification!$D36,Identification!B36,\"\")","v":""},{"$f":"IF(Identification!$D36,Identification!G36,\"\")","v":""}]
[null,{"$f":"IF(Identification!$D37,Identification!A37,\"\")","v":""},{"$f":"IF(Identification!$D37,Identification!B37,\"\")","v":""},{"$f":"IF(Identification!$D37,Identification!G37,\"\")","v":""}]
[null,{"$f":"IF(Identification!$D38,Identification!A38,\"\")","v":""},{"$f":"IF(Identification!$D38,Identification!B38,\"\")","v":""},{"$f":"IF(Identification!$D38,Identification!G38,\"\")","v":""}]
[null,{"$f":"IF(Identification!$D39,Identification!A39,\"\")","v":""},{"$f":"IF(Identification!$D39,Identification!B39,\"\")","v":""},{"$f":"IF(Identification!$D39,Identification!G39,\"\")","v":""}]
[null,{"$f":"IF(Identification!$D40,Identification!A40,\"\")","v":""},{"$f":"IF(Identification!$D40,Identification!B40,\"\")","v":""},{"$f":"IF(Identification!$D40,Identification!G40,\"\")","v":""}]
[null,{"$f":"IF(Identification!$D41,Identification!A41,\"\")","v":""},{"$f":"IF(Identification!$D41,Identification!B41,\"\")","v":""},{"$f":"IF(Identification!$D41,Identification!G41,\"\")","v":""}]
[null,{"$f":"Identification!A47","v":"EAU CHAUDE SANITAIRE "}]
[null,{"$f":"IF(Identification!$D48,Identification!A48,\"\")","v":""},{"$f":"IF(Identification!$D48,Identification!B48,\"\")","v":""},{"$f":"IF(Identification!$D48,Identification!G48,\"\")","v":""}]
[null,{"$f":"IF(Identification!$D49,Identification!A49,\"\")","v":""},{"$f":"IF(Identification!$D49,Identification!B49,\"\")","v":""},{"$f":"IF(Identification!$D49,Identification!G49,\"\")","v":""}]
[null,{"$f":"IF(Identification!$D50,Identification!A50,\"\")","v":""},{"$f":"IF(Identification!$D50,Identification!B50,\"\")","v":""},{"$f":"IF(Identification!$D50,Identification!G50,\"\")","v":""}]
[null,{"$f":"IF(Identification!$D51,Identification!A51,\"\")","v":""},{"$f":"IF(Identification!$D51,Identification!B51,\"\")","v":""},{"$f":"IF(Identification!$D51,Identification!G51,\"\")","v":""}]
[null,{"$f":"IF(Identification!$D52,Identification!A52,\"\")","v":""},{"$f":"IF(Identification!$D52,Identification!B52,\"\")","v":""},{"$f":"IF(Identification!$D52,Identification!G52,\"\")","v":""}]
[null,{"$f":"IF(Identification!$D53,Identification!A53,\"\")","v":""},{"$f":"IF(Identification!$D53,Identification!B53,\"\")","v":""},{"$f":"IF(Identification!$D53,Identification!G53,\"\")","v":""}]
[null,{"$f":"Identification!A59","v":"ÉCLAIRAGE"}]
[null,{"$f":"IF(Identification!$D60,Identification!A60,\"\")","v":""},{"$f":"IF(Identification!$D60,Identification!B60,\"\")","v":""},{"$f":"IF(Identification!$D60,Identification!G60,\"\")","v":""}]
[null,{"$f":"IF(Identification!$D61,Identification!A61,\"\")","v":""},{"$f":"IF(Identification!$D61,Identification!B61,\"\")","v":""},{"$f":"IF(Identification!$D61,Identification!G61,\"\")","v":""}]
[null,{"$f":"IF(Identification!$D62,Identification!A62,\"\")","v":""},{"$f":"IF(Identification!$D62,Identification!B62,\"\")","v":""},{"$f":"IF(Identification!$D62,Identification!G62,\"\")","v":""}]
[null,{"$f":"IF(Identification!$D63,Identification!A63,\"\")","v":""},{"$f":"IF(Identification!$D63,Identification!B63,\"\")","v":""},{"$f":"IF(Identification!$D63,Identification!G63,\"\")","v":""}]
[null,{"$f":"IF(Identification!$D64,Identification!A64,\"\")","v":""},{"$f":"IF(Identification!$D64,Identification!B64,\"\")","v":""},{"$f":"IF(Identification!$D64,Identification!G64,\"\")","v":""}]
[null,{"$f":"Identification!A70","v":"BUREAUTIQUE"}]
[null,{"$f":"IF(Identification!$D71,Identification!A71,\"\")","v":""},{"$f":"IF(Identification!$D71,Identification!B71,\"\")","v":""},{"$f":"IF(Identification!$D71,Identification!G71,\"\")","v":""}]
[null,{"$f":"IF(Identification!$D72,Identification!A72,\"\")","v":""},{"$f":"IF(Identification!$D72,Identification!B72,\"\")","v":""},{"$f":"IF(Identification!$D72,Identification!G72,\"\")","v":""}]
[null,{"$f":"IF(Identification!$D73,Identification!A73,\"\")","v":""},{"$f":"IF(Identification!$D73,Identification!B73,\"\")","v":""},{"$f":"IF(Identification!$D73,Identification!G73,\"\")","v":""}]
[]
["© SIG 2022"]

{"sheet":"Actions partiellement réalisées","index":4,"n_rows":38,"n_cols":6,"rows_kept":38,"cut":false,"hidden":false,"merged":[[37,0,37,6]]}
[]
[]
[null,{"$f":"IF(Identification!B12=\"\",\"\",Identification!B12)","v":""},{"$f":"IF(Identification!B9=\"\",\"\",Identification!B9)","v":""}]
[]
[null,"Projets non réalisés","Rentabilité","Commentaire","Décision","Date proposée"]
[null,{"$f":"Identification!A22","v":"CHAUFFAGE"}]
[null,{"$f":"IF(Identification!$E23,Identification!A23,\"\")","v":""},{"$f":"IF(Identification!$E23,Identification!B23,\"\")","v":""},{"$f":"IF(Identification!$E23,Identification!G23,\"\")","v":""}]
[null,{"$f":"IF(Identification!$E24,Identification!A24,\"\")","v":""},{"$f":"IF(Identification!$E24,Identification!B24,\"\")","v":""},{"$f":"IF(Identification!$E24,Identification!G24,\"\")","v":""}]
[null,{"$f":"IF(Identification!$E25,Identification!A25,\"\")","v":""},{"$f":"IF(Identification!$E25,Identification!B25,\"\")","v":""},{"$f":"IF(Identification!$E25,Identification!G25,\"\")","v":""}]
[null,{"$f":"IF(Identification!$E26,Identification!A26,\"\")","v":""},{"$f":"IF(Identification!$E26,Identification!B26,\"\")","v":""},{"$f":"IF(Identification!$E26,Identification!G26,\"\")","v":""}]
[null,{"$f":"IF(Identification!$E27,Identification!A27,\"\")","v":""},{"$f":"IF(Identification!$E27,Identification!B27,\"\")","v":""},{"$f":"IF(Identification!$E27,Identification!G27,\"\")","v":""}]
[null,{"$f":"IF(Identification!$E28,Identification!A28,\"\")","v":""},{"$f":"IF(Identification!$E28,Identification!B28,\"\")","v":""},{"$f":"IF(Identification!$E28,Identification!G28,\"\")","v":""}]
[null,{"$f":"Identification!A34","v":"VENTILATION ET CLIMATISATION"}]
[null,{"$f":"IF(Identification!$E36,Identification!A36,\"\")","v":""},{"$f":"IF(Identification!$E36,Identification!B36,\"\")","v":""},{"$f":"IF(Identification!$E36,Identification!G36,\"\")","v":""}]
[null,{"$f":"IF(Identification!$E37,Identification!A37,\"\")","v":""},{"$f":"IF(Identification!$E37,Identification!B37,\"\")","v":""},{"$f":"IF(Identification!$E37,Identification!G37,\"\")","v":""}]
[null,{"$f":"IF(Identification!$E38,Identification!A38,\"\")","v":""},{"$f":"IF(Identification!$E38,Identification!B38,\"\")","v":""},{"$f":"IF(Identification!$E38,Identification!G38,\"\")","v":""}]
[null,{"$f":"IF(Identification!$E39,Identification!A39,\"\")","v":""},{"$f":"IF(Identification!$E39,Identification!B39,\"\")","v":""},{"$f":"IF(Identification!$E39,Identification!G39,\"\")","v":""}]
[null,{"$f":"IF(Identification!$E40,Identification!A40,\"\")","v":""},{"$f":"IF(Identification!$E40,Identification!B40,\"\")","v":""},{"$f":"IF(Identification!$E40,Identification!G40,\"\")","v":""}]
[null,{"$f":"IF(Identification!$E41,Identification!A41,\"\")","v":""},{"$f":"IF(Identification!$E41,Identification!B41,\"\")","v":""},{"$f":"IF(Identification!$E41,Identification!G41,\"\")","v":""}]
[null,{"$f":"Identification!A47","v":"EAU CHAUDE SANITAIRE "}]
[null,{"$f":"IF(Identification!$E48,Identification!A48,\"\")","v":""},{"$f":"IF(Identification!$E48,Identification!B48,\"\")","v":""},{"$f":"IF(Identification!$E48,Identification!G48,\"\")","v":""}]
[null,{"$f":"IF(Identification!$E49,Identification!A49,\"\")","v":""},{"$f":"IF(Identification!$E49,Identification!B49,\"\")","v":""},{"$f":"IF(Identification!$E49,Identification!G49,\"\")","v":""}]
[null,{"$f":"IF(Identification!$E50,Identification!A50,\"\")","v":""},{"$f":"IF(Identification!$E50,Identification!B50,\"\")","v":""},{"$f":"IF(Identification!$E50,Identification!G50,\"\")","v":""}]
[null,{"$f":"IF(Identification!$E51,Identification!A51,\"\")","v":""},{"$f":"IF(Identification!$E51,Identification!B51,\"\")","v":""},{"$f":"IF(Identification!$E51,Identification!G51,\"\")","v":""}]
[null,{"$f":"IF(Identification!$E52,Identification!A52,\"\")","v":""},{"$f":"IF(Identification!$E52,Identification!B52,\"\")","v":""},{"$f":"IF(Identification!$E52,Identification!G52,\"\")","v":""}]
[null,{"$f":"IF(Identification!$E53,Identification!A53,\"\")","v":""},{"$f":"IF(Identification!$E53,Identification!B53,\"\")","v":""},{"$f":"IF(Identification!$E53,Identification!G53,\"\")","v":""}]
[null,{"$f":"Identification!A59","v":"ÉCLAIRAGE"}]
[null,{"$f":"IF(Identification!$E60,Identification!A60,\"\")","v":""},{"$f":"IF(Identification!$E60,Identification!B60,\"\")","v":""},{"$f":"IF(Identification!$E60,Identification!G60,\"\")","v":""}]
[null,{"$f":"IF(Identification!$E61,Identification!A61,\"\")","v":""},{"$f":"IF(Identification!$E61,Identification!B61,\"\")","v":""},{"$f":"IF(Identification!$E61,Identification!G61,\"\")","v":""}]
[null,{"$f":"IF(Identification!$E62,Identification!A62,\"\")","v":""},{"$f":"IF(Identification!$E62,Identification!B62,\"\")","v":""},{"$f":"IF(Identification!$E62,Identification!G62,\"\")","v":""}]
[null,{"$f":"IF(Identification!$E63,Identification!A63,\"\")","v":""},{"$f":"IF(Identification!$E63,Identification!B63,\"\")","v":""},{"$f":"IF(Identification!$E63,Identification!G63,\"\")","v":""}]
[null,{"$f":"IF(Identification!$E64,Identification!A64,\"\")","v":""},{"$f":"IF(Identification!$E64,Identification!B64,\"\")","v":""},{"$f":"IF(Identification!$E64,Identification!G64,\"\")","v":""}]
[null,{"$f":"Identification!A70","v":"BUREAUTIQUE"}]
[null,{"$f":"IF(Identification!$E71,Identification!A71,\"\")","v":""},{"$f":"IF(Identification!$E71,Identification!B71,\"\")","v":""},{"$f":"IF(Identification!$E71,Identification!G71,\"\")","v":""}]
[null,{"$f":"IF(Identification!$E72,Identification!A72,\"\")","v":""},{"$f":"IF(Identification!$E72,Identification!B72,\"\")","v":""},{"$f":"IF(Identification!$E72,Identification!G72,\"\")","v":""}]
[null,{"$f":"IF(Identification!$E73,Identification!A73,\"\")","v":""},{"$f":"IF(Identification!$E73,Identification!B73,\"\")","v":""},{"$f":"IF(Identification!$E73,Identification!G73,\"\")","v":""}]
[]
["© SIG 2022"]